Cogmind - Beta 9.6 @@@ ROGUE MODE // 2020.07.10 @ 16:57:51 Player: Mr.Manatee Result: Destroyed by as-93722 with Assembled Heavy Rifle Performance ------------- Evolutions (0) 0 Regions Visited (2) 400 Robots Destroyed (18) 90 Value Destroyed (112) 112 Prototype IDs (0) 0 Alien Tech Used (0) 0 Bonus (0) 0 TOTAL SCORE: 602 Bonus ------- None Cogmind --------- Core Integrity 0/250 Matter 276/300 Energy 310/310 System Corruption 1% Temperature Cool (25) Movement Rolling (90) Location -10/Mines Parts ------- > --- POWER (1) -------- Fission Core > --- PROPULSION (2) --- Armored Wheel Armored Wheel > --- UTILITY (2) ------ Small Storage Unit Improved Light Armor Plating > --- WEAPON (2) ------- Autogun Autogun > --- INVENTORY (6) ---- Light Treads Armored Wheel Armored Wheel Improved Light Armor Plating Autogun Autogun Peak State ------------ > --- POWER ------------ Fission Core > --- PROPULSION ------- Armored Wheel Armored Wheel > --- UTILITY ---------- Small Storage Unit Improved Light Armor Plating > --- WEAPON ----------- Autogun Autogun > --- INVENTORY -------- Light Treads Armored Wheel Armored Wheel Light Armor Plating Autogun Autogun [Rating: 18] Favorites ----------- Power Light Ion Engine Engine Light Ion Engine Power Core Fission Core Propulsion Armored Wheel Leg Aluminum Leg Wheel Armored Wheel Utility Small Storage Unit Storage Small Storage Unit Processor Improved Signal Interpreter Protection Improved Light Armor Plating Weapon Autogun Ballistic Gun Autogun Build | -11 -10 -10 ------- Run | Scr Mat Min Slots Evolved . | . . . Power . | . . . Propulsion . | . . . Utility . | . . . Weapon . | . . . Parts Attached 14 | 6 6 2 Power 3 | 1 1 1 Engine 2 | 1 1 . Core 1 | . . 1 Reactor . | . . . Propulsion 4 | 2 2 . Treads . | . . . Leg 2 | 2 . . Wheel 2 | . 2 . Hover . | . . . Flight . | . . . Utility 3 | 1 1 1 Device . | . . . Storage 1 | 1 . . Processor 1 | . 1 . Hackware . | . . . Protection 1 | . . 1 Artifact . | . . . Weapon 4 | 2 2 . Energy Gun . | . . . Energy Cannon . | . . . Ballistic Gun 4 | 2 2 . Ballistic Cannon . | . . . Launcher . | . . . Special Weapon . | . . . Impact Weapon . | . . . Slashing Weapon . | . . . Piercing Weapon . | . . . Special Melee Weapon . | . . . Unidentified Prototypes . | . . . Parts Lost 2 | . 1 1 Power 1 | . 1 . Propulsion . | . . . Utility 1 | . . 1 Weapon . | . . . Highest Loss Streak 1 | . 1 1 Average Slot Usage (%) 99 | . 99 99 Engine 11 | . 14 8 Core 3 | . . 5 Wheel 27 | . 27 28 Storage 14 | . 14 14 Processor 10 | . 13 7 Protection 3 | . . 5 Ballistic Gun 28 | . 28 28 Naked Turns . | . . . Heaviest Build 23 | 12 15 23 Greatest Support 24 | 20 24 24 Greatest Overweight (x) 3 | 2 3 . Average Overweight (x) . | . . . Largest Inventory Capacity 6 | 6 6 6 Average Capacity 5 | 5 6 6 Most Carried 6 | 6 6 6 Average Carried 5 | 4 5 5 Final Capacity 6 | 6 6 6 Final Carried 6 | 5 6 6 Class Distribution -------------------- 100% | Mutant Dominant Class ---------------- Mutant | -10/Materials Mutant | -10/Mines Resources | -11 -10 -10 ----------- Run | Scr Mat Min Matter Collected 759 | 276 134 349 Remotely . | . . . Salvage Created 438 | 78 129 231 Parts 19 | 1 11 7 Haulers Intercepted 2 | . 2 . Recyclers Shooed . | . . . Parts Field Recycled . | . . . Retrieved Matter . | . . . Parts Self-Destructed . | . . . Prevented . | . . . Kills | -11 -10 -10 ------- Run | Scr Mat Min Combat Hostiles Destroyed 11 | . . 11 Guns 11 | . . 11 Classes Destroyed 6 | 1 2 3 Worker 1 | . . 1 Hauler 2 | . 2 . Recycler 2 | 1 . 1 Watcher 2 | . 2 . Demolisher 1 | . . 1 Assembled 10 | . . 10 Best Kill Streak 4 | 1 2 4 Combat Bots Only 4 | . . 4 Max Kills in Single Turn 1 | 1 1 1 Gunslinging . | . . . Exploded . | . . . Melee . | . . . Uniques/NPCs Destroyed . | . . . Combat | -11 -10 -10 -------- Run | Scr Mat Min Damage Taken 681 | . 204 477 Core 251 | . 111 140 Absorbed by Shields . | . . . Core Remaining (%) 100 | 100 . . Volleys Fired 58 | 4 14 40 Largest 2 | 2 2 2 Hottest 46 | 40 46 46 Shots Fired 116 | 8 28 80 Gun 116 | 8 28 80 Cannon . | . . . Launcher . | . . . Special . | . . . Kinetic 116 | 8 28 80 Thermal . | . . . Explosive . | . . . Electromagnetic . | . . . Robot Hit Streak 14 | 4 14 6 Robot Miss Streak 4 | 2 1 4 Penetration Max . | . . . Secondary Targets 1 | . . 1 Max Gunslinging Chain 1 | . . 1 Shots Hit Robots 68 | 5 20 43 Core Hits 29 | 2 6 21 Critical Hits 2 | . 1 1 Critical Kills 1 | . . 1 Critical Parts Destroyed 1 | . 1 . Melee Attacks . | . . . Impact . | . . . Slashing . | . . . Piercing . | . . . Sneak Attacks . | . . . Combat Hostiles . | . . . Follow-up Attacks . | . . . Damage Inflicted 1041 | 50 313 678 Guns 1041 | 50 313 678 Cannons . | . . . Explosions . | . . . Melee . | . . . Ramming . | . . . Kinetic 1041 | 50 313 678 Thermal . | . . . Explosive . | . . . Electromagnetic . | . . . Impact . | . . . Slashing . | . . . Piercing . | . . . Highest Corruption 1 | . . 1 Average Corruption 1 | . . 1 Corruption Purged . | . . . Effects 2 | . . 2 Data Loss (minor) 1 | . . 1 Targeting Errors 1 | . . 1 Overload Shots . | . . . Overflow Damage . | . . . Projectiles . | . . . Explosions . | . . . Melee . | . . . Knockbacks . | . . . Impact . | . . . Kinetic . | . . . Secondary . | . . . Self-Inflicted Damage . | . . . Shots . | . . . Rammed . | . . . Targets Rammed . | . . . Kicked . | . . . Crushed . | . . . Highest Temperature 34 | . 12 34 Average Temperature 8 | . 5 9 Received Heat Transfer . | . . . Siege Activations . | . . . Robots Corrupted . | . . . Combat Hostiles . | . . . Parts Fried . | . . . Impact Corruptions . | . . . Robots Melted . | . . . Combat Hostiles . | . . . Parts Melted . | . . . Heat Transferred . | . . . Parts Sabotaged . | . . . Parts Stolen . | . . . Parts Stripped . | . . . Power Chain Reactions . | . . . Missiles Intercepted . | . . . Alert | -11 -10 -10 ------- Run | Scr Mat Min Peak Influence 38 | 5 36 38 Average Influence 12 | 3 11 17 Maximum Alert Level . | . . . Low Security (%) 100 | 100 100 100 Level 1 . | . . . Level 2 . | . . . Level 3 . | . . . Level 4 . | . . . Level 5 . | . . . High Security . | . . . Max Security . | . . . Squads Dispatched . | . . . Investigation . | . . . Extermination . | . . . Reinforcement . | . . . Assault . | . . . Garrison . | . . . Intercept . | . . . Construction Impeded . | . . . Haulers Reinforced . | . . . Stealth | -11 -10 -10 --------- Run | Scr Mat Min Distress Signals . | . . . Communications Jammed . | . . . Distress Signals . | . . . Times Spotted 23 | . 3 20 Peak Tracking Total 10 | . 2 10 Tactical Retreats 3 | . . 3 Traps | -11 -10 -10 ------- Run | Scr Mat Min Traps Triggered 1 | . 1 . Indirectly . | . . . Trap Hack Attempts . | . . . Triggered . | . . . Disarmed . | . . . Reprogrammed . | . . . Reused . | . . . Traps Extracted . | . . . Installed . | . . . Triggered . | . . . Machines | -11 -10 -10 ---------- Run | Scr Mat Min Machines Disabled 1 | . 1 . Max in Single Turn 1 | . 1 . Machines Sabotaged . | . . . Garrisons Compromised . | . . . Overloaded Fab Kills . | . . . Fab Network Shutdowns . | . . . Hacking | -11 -10 -10 --------- Run | Scr Mat Min Machines Accessed 3 | . 3 . Terminals 2 | . 2 . Fabricators . | . . . Repair Stations . | . . . Recycling Units 1 | . 1 . Scanalyzers . | . . . Garrison Access . | . . . Total Hacks 5 | . 5 . Successful 1 | . 1 . Failed 4 | . 4 . Catastrophic 2 | . 2 . Database Lockouts . | . . . Manual 4 | . 4 . Terminals 4 | . 4 . Fabricators . | . . . Repair Stations . | . . . Recycling Units 1 | . 1 . Scanalyzers . | . . . Garrison Access . | . . . Terminal Hacks . | . . . Fabricator Hacks . | . . . Repair Station Hacks . | . . . Recycling Unit Hacks 1 | . 1 . Report Inventory 1 | . 1 . Scanalyzer . | . . . Garrison Access Hacks . | . . . Unauthorized Hacks . | . . . Terminals . | . . . Fabricators . | . . . Repair Stations . | . . . Recycling Units . | . . . Scanalyzers . | . . . Garrison Access . | . . . Data Cores Recovered . | . . . Used . | . . . Hacking Detections 2 | . 2 . Full Trace Events . | . . . Feedback Events . | . . . Feedback Blocked . | . . . Robot Schematics Acquired . | . . . Robots Built . | . . . Matter . | . . . Time . | . . . Total Robot Build Rating . | . . . Part Schematics Acquired . | . . . Parts Built . | . . . Matter . | . . . Time . | . . . Total Part Build Rating . | . . . Parts Repaired . | . . . Time . | . . . Parts Recycled . | . . . Recycled Matter . | . . . Retrieved Matter . | . . . Retrieved Components . | . . . Parts Scanalyzed . | . . . Part Schematics Acquired . | . . . Parts Damaged . | . . . Bothacking | -11 -10 -10 ------------ Run | Scr Mat Min Used RIF Installer . | . . . Robots Hacked . | . . . Non-combat . | . . . Combat . | . . . Robot Hacks Applied . | . . . Relay Couplers Released . | . . . Robots Rewired . | . . . Allies Hacked . | . . . Hacks Repelled . | . . . Allies | -11 -10 -10 -------- Run | Scr Mat Min Total Allies . | . . . Largest Group . | . . . Highest-Rated Group . | . . . Highest-Rated Ally . | . . . Total Orders . | . . . Ally Attacks . | . . . Total Damage . | . . . Kills . | . . . Allies Corrupted . | . . . Allies Melted . | . . . Intel | -11 -10 -10 ------- Run | Scr Mat Min Robot Analysis Total . | . . . Derelict Logs Recovered 2 | . . 2 Drone Launches . | . . . Drone Recoveries . | . . . Exploration | -11 -10 -10 ------------- Run | Scr Mat Min Turns Passed 1272 | 292 478 502 Spaces Moved 936 | 66 468 402 Core 29 | 27 2 . Treads . | . . . Legs 44 | 39 5 . Wheels 863 | . 461 402 Hover . | . . . Flight . | . . . Fastest Speed 50 | 50 90 90 Average Speed 91 | 104 90 90 Slowest Speed 200 | 150 200 90 Overloaded Moves . | . . . Propulsion Burnouts . | . . . Robots Hopped . | . . . Cave-ins Triggered . | . . . Exploration Rate (%) 47 | 4 49 88 Regions Visited 2 Branch Regions 1 Pre-discovered Areas 1 | . . 1 Known Exits Taken 1 | . 1 . Unknown Exits Taken 1 | 1 . . Scrap Searched 1 | . . 1 Spaces Dug . | . . . Terrain Destroyed . | . . . Melee . | . . . Projectile . | . . . AOE . | . . . Actions | -11 -10 -10 --------- Run | Scr Mat Min Total 1261 | 281 501 479 Wait 230 | 196 2 32 Move 934 | 65 467 402 Hop . | . . . Pick Up 15 | 9 5 1 Fast Attach 8 | 3 3 2 Attach 4 | 3 1 . Detach . | . . . Swap 2 | . 2 . Drop 10 | 1 7 2 Fire 58 | 4 14 40 Melee . | . . . Ram . | . . . Kick . | . . . Crush . | . . . Escape Stasis . | . . . Rewire . | . . . Trap . | . . . Miscellaneous . | . . . Route ------- -11/Scrapyard -10/Materials (discovered 2 exits: *Mat / *Min) -10/Mines (discovered 2 exits: *Mat x2) History --------- Turn | Location | Event 25 | -11/Scrapyard | Discovered new exit (range 16) 293 | -11/Scrapyard | Entered Materials 345 | -10/Materials | Build established: Mutant 679 | -10/Materials | Discovered new exit (range 12) 689 | -10/Materials | Identified exit to Materials 758 | -10/Materials | Discovered new exit (range 11) 770 | -10/Materials | Identified exit to Mines 771 | -10/Materials | Entered Mines 790 | -10/Mines | Discovered exit to Materials (range 14) 819 | -10/Mines | Discovered exit to Materials (range 8) 923 | -10/Mines | Assembled infested the area 928 | -10/Mines | Assisted by a Guerilla fighting off Assembled 958 | -10/Mines | Core integrity fell below 50% 994 | -10/Mines | Core integrity fell below 20% 1102 | -10/Mines | Received a Rocket Launcher from a helpful Derelict 1273 | -10/Mines | Destroyed by as-93722 with Assembled Heavy Rifle Last Messages --------------- 01131_ U-05 Engineer lays Concrete. 01132_ K-01 Serf collects debris. 01132_ U-05 Engineer builds a Wall. 01134_ K-01 Serf destroyed. 01136_ U-05 Engineer lays Concrete. 01137_ R-06 Scavenger destroyed. 01137_ U-05 Engineer lays Concrete. 01139_ U-05 Engineer builds a Wall. 01143_ Acquired 73 matter. 01147_ Acquired 8 matter. 01160_ T-07 Excavator system corrupted by crushing effect. 01162_ T-07 Excavator destroyed. 01169_ as-52688 suffers critical hit. 01169_ as-52688 destroyed. 01172_ Acquired 16 matter. 01187_ as-38717 destroyed. 01190_ Acquired 8 matter. 01198_ Acquired derelict log, extracted data. Data stored: Storage entrances (x1). 01272_ System corrupted: Autogun targeting data glitched. Map ----- +----------------------------------------------------+ | ???????????????????????????????????????????? | | ????####???????????????????????????????????? | | ??### ##??????????????????????????????????? | | ?## % ##?????????????????????????????????? | | ?# ##????????????????????????????????? | | ?# ##???????????????????????????????? | | ?# #???????????????????????????????? | | ?## #???????????????????????????????? | | ??# ##???????????????????????????????? | | ??# ##???????????????????????????????? | | ??## ##??????????????????????????????? | | ???## ##?????????????????????????????? | | ????# #?????????????????????????????? | | ????# #?????????????????????????????? | | ???## ##?????????????????????????????? | | ???# #??????????????????????????????? | | ???# ##??????????????????????????????? | | ???# ####??????####?????????????????????? | | ???# ##????????## ##????????????%???????? | | ???# ##?????????# ######???? ""???????? | | ???# #?????????## ###%! ""???????? | | ???# #?????????# = """??????? | | ???# ########### ????? | | ???# % =|= #????????? | | ???# % %!a##### ### #?????????? | | ???################@#??????##??????????????? | | ??????????????????# #??????????????????????? | | ??????????????????# #??????????????????????? | | ??????????????????# #??????????????????????? | | ??????????????????# #??????????????????????? | | ??????????????????#!#??????????????????????? | | ??????????????????#%#######????????????????? | | ??????????????????# % |#????????????????? | | ??????????????????#######!#????????????????? | | ???????????????????####?#=#??????????????##? | | ??????????????????## ### #??#####?????## ## | | ??????????????????# ##*##### ###??## # | | ?????????????????## %=# #### #? | | ?????????????##### *=*## ## #?? | | ????????????## * ### ##? | | ????????????# ##?# =! = ## | | ???????????## ##??### ## %!%= ! # | | ???????????# #?????# # ]!## != | | ???????????# #?????## # #### | | ???????????## ] #??????### ##### | | ????????????## ##???#### #???## % # | | ?????####???## ##????## % ##????# # | | ????## ##?## #?##### % #?????## ## | | ????# ### ### ##??????####? | | ???## | ## #???????????? | +----------------------------------------------------+ Best States ------------- Heat Dissipation 25 Energy Generation 18 Energy Capacity 310 Matter Stores 300 Matter Capacity 300 Sight Range 16 Terrain Scan Density 10 Armor Coverage 150 Evasion (%) 50 Item Schematics ----------------- None Robot Schematics ------------------ None Fabricated ------------ Nothing Alien Tech Used ----------------- None Achievements -------------- None Challenges ------------ None Game ------ Seed AntigravTacticalProtection Manual? 0 Play Time 00:11:58 Cumulative 44.6 hours Start 2020.07.10 @ 16:47:44 End 2020.07.10 @ 16:57:51 Sessions 1 Manual Loads 0 Difficulty Rogue Special Mode None Game No. 57 Rogue 57 Adventurer 0 Explorer 0 Win Type - Total 0 Types 0/0/0/0/0/0/0 Lore% 33 Gallery% 43 Achievement% 37 Wizard Run 0 Options --------- ASCII 0 Keyboard 0 Movement Numpad Keybinds 0 Fullscreen 2 Font 18/SmallcapsGlow Map View 76x50 Tactical HUD 1 Map Filters NONE Filters NONE Steam 1 RUN: e686d123-cb65-4f60-91c2-1e4b2a5f2d7d